Cogmind - Beta 15 @@@ ROGUE MODE // 2025.05.09 @ 21:22:10 // AFD2021/Volatile Player: Minty Result: Destroyed by G-34 Mercenary with Small Laser Performance ------------- Evolutions (0) 0 Regions Visited (1) 200 Robots Destroyed (12) 60 Value Destroyed (320) 320 Prototype IDs (0) 0 Alien Tech Used (0) 0 Bonus (0) 0 TOTAL SCORE: 580 Bonus ------- None Cogmind --------- Core Integrity 0/250 Matter 224/300 Energy 250/250 System Corruption 0% Temperature Cool (6) Movement Walking (190) Ox1 Location -10/Materials Parts ------- > --- POWER (1) -------- Ion Engine > --- PROPULSION (2) --- Aluminum Leg > --- UTILITY (2) ------ Small Storage Unit Core Shielding > --- WEAPON (2) ------- Mining Claw > --- INVENTORY (8) ---- Light Treads Light Treads Wheel Compact Wheel Flight Unit Sensor Array Mining Claw Mining Claw Peak State ------------ > --- POWER ------------ Ion Engine > --- PROPULSION ------- Aluminum Leg Aluminum Leg > --- UTILITY ---------- Small Storage Unit Core Shielding > --- WEAPON ----------- Mining Claw Mining Claw > --- INVENTORY -------- Light Treads Light Treads Wheel Compact Wheel Assault Rifle Mining Claw [Rating: 7] Favorites ----------- Power Ion Engine Engine Ion Engine Propulsion Aluminum Leg Leg Aluminum Leg Utility Small Storage Unit Storage Small Storage Unit Protection Core Shielding Weapon Assault Rifle Energy Gun EM Pulse Gun Ballistic Gun Assault Rifle Slashing Weapon Mining Claw Build | -11 -10 ------- Run | Yrd Mat Slots Evolved . | . . Power . | . . Propulsion . | . . Utility . | . . Weapon . | . . Parts Attached 6 | . 6 Power 1 | . 1 Engine 1 | . 1 Core . | . . Reactor . | . . Propulsion . | . . Treads . | . . Leg . | . . Wheel . | . . Hover . | . . Flight . | . . Utility 1 | . 1 Device . | . . Storage . | . . Processor . | . . Hackware . | . . Protection 1 | . 1 Artifact . | . . Weapon 4 | . 4 Energy Gun 1 | . 1 Energy Cannon . | . . Ballistic Gun 1 | . 1 Ballistic Cannon . | . . Launcher . | . . Special Weapon . | . . Impact Weapon . | . . Slashing Weapon 2 | . 2 Piercing Weapon . | . . Special Melee Weapon . | . . Unidentified Prototypes . | . . Parts Lost 5 | . 5 Power 1 | . 1 Propulsion 1 | . 1 Utility . | . . Weapon 3 | . 3 Highest Loss Streak 2 | . 2 To Critical Strikes . | . . Average Backups 5 | . 5 Power . | . . Propulsion 4 | . 4 Utility . | . . Weapon . | . . Tool/Special . | . . Unused Backups 1 | . 1 Power . | . . Propulsion . | . . Utility . | . . Weapon 1 | . 1 Tool/Special . | . . Average Slot Usage (%) 82 | . 82 Engine 10 | . 10 Leg 28 | . 28 Storage 14 | . 14 Protection 4 | . 4 Energy Gun 3 | . 3 Ballistic Gun 12 | . 12 Slashing Weapon 7 | . 7 Peak Build Rating 7 | . 7 Average Rating 5 | . 5 On Entrance 6 | 6 6 Naked Turns . | . . Heaviest Build 15 | 14 15 Greatest Support 20 | 20 20 Greatest Overweight (x) 1 | . 1 Average Overweight (x) . | . . Largest Inventory Capacity 8 | . 8 Average Capacity 8 | . 8 Most Carried 8 | . 8 Average Carried 5 | . 5 Final Capacity 8 | 8 8 Final Carried 8 | 6 8 Class Distribution -------------------- 100% | Mutant Dominant Class ---------------- Mutant | -10/Materials Resources | -11 -10 ----------- Run | Yrd Mat Matter Collected 238 | 200 38 Remotely . | . . Salvage Created 285 | . 285 Parts 24 | . 24 Haulers Intercepted . | . . Recyclers Shooed . | . . Parts Field Recycled . | . . Retrieved Matter . | . . Parts Self-Destructed . | . . Prevented . | . . Kills | -11 -10 ------- Run | Yrd Mat Combat Hostiles Destroyed 10 | . 10 Guns 5 | . 5 AOE 5 | . 5 Classes Destroyed 4 | . 4 Mechanic 1 | . 1 Operator 1 | . 1 Swarmer 3 | . 3 Grunt 7 | . 7 Best Kill Streak 8 | . 8 Combat Bots Only 8 | . 8 Max Kills in Single Turn 4 | . 4 Gunslinging . | . . Exploded 2 | . 2 Melee . | . . Uniques/NPCs Destroyed . | . . Combat | -11 -10 -------- Run | Yrd Mat Hostile Shots Fired 91 | . 91 Missed 23 | . 23 Hits 68 | . 68 Projectile 68 | . 68 Critical Strikes 2 | . 2 Damage Taken 973 | . 973 Core 252 | . 252 Absorbed by Shields . | . . Redirected to Shielding 29 | . 29 Core Remaining (%) 100 | 100 . Volleys Fired 18 | . 18 Largest 2 | . 2 Hottest 60 | . 60 Shots Fired 35 | . 35 Gun 35 | . 35 Cannon . | . . Launcher . | . . Special . | . . Kinetic 23 | . 23 Thermal . | . . Explosive . | . . Electromagnetic 12 | . 12 Robot Hit Streak 5 | . 5 Robot Miss Streak 3 | . 3 Penetration Max . | . . Secondary Targets 2 | . 2 Max Gunslinging Chain 1 | . 1 Shots Hit Robots 23 | . 23 Core Hits 17 | . 17 Critical Kills . | . . Critical Parts Destroyed . | . . Critical Strikes . | . . Melee Attacks 5 | . 5 Impact . | . . Slashing 5 | . 5 Piercing . | . . Sneak Attacks . | . . Combat Hostiles . | . . Follow-up Attacks . | . . Damage Inflicted 943 | . 943 Guns 261 | . 261 Cannons . | . . Explosions 659 | . 659 Melee 23 | . 23 Ramming . | . . Kinetic 130 | . 130 Thermal 119 | . 119 Explosive 336 | . 336 Electromagnetic 131 | . 131 Impact . | . . Slashing 23 | . 23 Piercing . | . . Entropic 204 | . 204 Highest Corruption . | . . Average Corruption . | . . Corruption Purged . | . . Corruption Blocked . | . . Overload Shots . | . . Overflow Damage 31 | . 31 Projectiles . | . . Explosions 31 | . 31 Melee . | . . Knockbacks . | . . Impact . | . . Kinetic . | . . Secondary . | . . Self-Inflicted Damage 315 | . 315 Shots 6 | . 6 Rammed . | . . Targets Rammed . | . . Kicked . | . . Crushed . | . . Highest Temperature 43 | . 43 Average Temperature 22 | . 22 Received Heat Transfer 228 | . 228 Siege Activations . | . . Martial Activations . | . . Shielding Activations . | . . Robots Disrupted . | . . Combat Hostiles . | . . Robots Corrupted . | . . Combat Hostiles . | . . Parts Fried . | . . Impact Corruptions . | . . Robots Melted . | . . Combat Hostiles . | . . Parts Melted 1 | . 1 Heat Transferred 150 | . 150 Parts Sabotaged . | . . Parts Stolen . | . . Parts Stripped . | . . Power Chain Reactions 2 | . 2 Alert | -11 -10 ------- Run | Yrd Mat Maximum Alert Level 1 | . 1 Low Security (%) 51 | . 51 Level 1 48 | . 48 Level 2 . | . . Level 3 . | . . Level 4 . | . . Level 5 . | . . High Security . | . . Max Security . | . . Peak Influence 269 | . 269 Initial . | . . Average 152 | . 152 Influence Increases 339 | . 339 Destroy 0b10 Robot/C 200 | . 200 Destroy 0b10 Robot/NC 10 | . 10 Destroy Leader 30 | . 30 Disable Machine 15 | . 15 Destroy Structure 84 | . 84 Influence Decreases 160 | . 160 Time Decay 110 | . 110 Lost Part 50 | . 50 Squads Dispatched 3 | . 3 Investigation 3 | . 3 Extermination . | . . Reinforcement . | . . Assault . | . . Garrison . | . . Intercept . | . . Searches Triggered . | . . Construction Impeded . | . . Haulers Reinforced . | . . Active Scanning Responses . | . . Cargo Convoy Interrupts . | . . Stealth | -11 -10 --------- Run | Yrd Mat Distress Signals 1 | . 1 Communications Jammed . | . . Distress Signals . | . . Times Spotted 18 | . 18 Peak Tracking Total 7 | . 7 Tactical Retreats . | . . Traps | -11 -10 ------- Run | Yrd Mat Traps Triggered . | . . Indirectly . | . . Trap Hack Attempts . | . . Triggered . | . . Disarmed . | . . Reprogrammed . | . . Reused . | . . Traps Extracted . | . . Installed . | . . Triggered . | . . Machines | -11 -10 ---------- Run | Yrd Mat Machines Disabled 1 | . 1 Max in Single Turn 1 | . 1 Machines Repaired . | . . Machines Dismantled . | . . Machines Sabotaged . | . . Overloaded Fab Kills . | . . Hacking | -11 -10 --------- Run | Yrd Mat Machines Accessed 4 | . 4 Terminals 4 | . 4 Fabricators . | . . Repair Stations . | . . Recycling Units . | . . Scanalyzers . | . . Garrison Access . | . . Total Hacks 12 | . 12 Successful 4 | . 4 Failed 8 | . 8 Catastrophic 3 | . 3 Database Lockouts . | . . Manual 5 | . 5 Terminals 12 | . 12 Fabricators . | . . Repair Stations . | . . Recycling Units . | . . Scanalyzers . | . . Garrison Access . | . . Terminal Hacks 3 | . 3 Locate Traps 2 | . 2 Hauler Manifests 1 | . 1 Fabricator Hacks . | . . Repair Station Hacks . | . . Recycling Unit Hacks . | . . Scanalyzer . | . . Garrison Access Hacks . | . . Unauthorized Hacks 1 | . 1 Terminals 1 | . 1 Search 1 | . 1 Fabricators . | . . Repair Stations . | . . Recycling Units . | . . Scanalyzers . | . . Garrison Access . | . . Data Cores Recovered . | . . Used . | . . Hacking Detections 3 | . 3 Full Trace Events 2 | . 2 Feedback Events . | . . Feedback Blocked . | . . Robot Schematics Acquired . | . . Robots Built . | . . Authchips . | . . Time . | . . Total Robot Build Rating . | . . Part Schematics Acquired . | . . Parts Built . | . . Authchips . | . . Time . | . . Total Part Build Rating . | . . Parts Repaired . | . . Time . | . . Parts Recycled . | . . Recycled Matter . | . . Retrieved Matter . | . . Retrieved Components . | . . Parts Scanalyzed . | . . Part Schematics Acquired . | . . Parts Damaged . | . . Bothacking | -11 -10 ------------ Run | Yrd Mat Used RIF Installer . | . . Robots Hacked . | . . Non-combat . | . . Combat . | . . Robot Hacks Applied . | . . Relay Couplers Released . | . . Fabnet Peak Effective % . | . . Robots Rewired . | . . Allies Hacked . | . . Hacks Repelled . | . . Allies | -11 -10 -------- Run | Yrd Mat Total Allies . | . . Largest Group . | . . Highest-Rated Group . | . . Highest-Rated Ally . | . . Total Orders . | . . Ally Attacks . | . . Total Damage . | . . Kills . | . . Allies Corrupted . | . . Allies Melted . | . . Intel | -11 -10 ------- Run | Yrd Mat Active Infowar (turns) . | . . Robot Analysis Total . | . . Derelict Logs Recovered . | . . Drone Launches . | . . Drone Recoveries . | . . Exploration | -11 -10 ------------- Run | Yrd Mat Turns Passed 283 | . 283 Spaces Moved 154 | 1 153 Core 16 | . 16 Treads . | . . Legs 138 | 1 137 Wheels . | . . Hover . | . . Flight . | . . Fastest Speed 100 | 120 100 Average Speed 117 | 120 117 Slowest Speed 120 | 120 120 Overloaded Moves . | . . Propulsion Burnouts . | . . Robots Hopped . | . . Potential Cave-ins 2 | . 2 Cave-ins Triggered . | . . Exploration Rate (%) 22 | 2 43 Regions Visited 1 Branch Regions . Pre-discovered Areas . | . . Known Exits Taken . | . . Unknown Exits Taken 1 | 1 . Scrap Searched . | . . Spaces Dug . | . . Terrain Destroyed 100 | . 100 Melee . | . . Projectile . | . . AOE 100 | . 100 Terrain Rammed . | . . Walls Destroyed . | . . Machines Disabled . | . . Actions | -11 -10 --------- Run | Yrd Mat Total 210 | . 210 Wait 23 | . 23 Move 153 | . 153 Hop . | . . Pick Up 2 | . 2 Fast Attach 3 | . 3 Attach 3 | . 3 Detach 2 | . 2 Swap 1 | . 1 Drop . | . . Fire 18 | . 18 Melee 5 | . 5 Ram . | . . Kick . | . . Crush . | . . Escape Stasis . | . . Rewire . | . . Trap . | . . Miscellaneous . | . . Route ------- -11/Scrapyard -10/Materials (discovered 1 exit: [*Mat]) History --------- Turn | Location | Event 1 | -11/Scrapyard | Discovered new exit (range 0) 1 | -11/Scrapyard | Entered Materials 135 | -10/Materials | Destroyed 8 combat bots 262 | -10/Materials | Discovered new exit (range 3) 269 | -10/Materials | Core integrity fell below 50% 283 | -10/Materials | Core integrity fell below 20% 284 | -10/Materials | Destroyed by G-34 Mercenary with Small Laser Last Messages --------------- A-02 Transporter 4x Sensor Array 1x Hover Unit A-02 Transporter 1x Tractor Beam 3x Lgt. Armor Plating >>Force(Search) SEARCH_COMPLETE[2] DISCOVERED[2xTerminal] COORDINATES_EXTRACTED 00202_ ALERT: Suspicious activity at Terminal M002. Dispatching Investigation squad. 00206_ Acquired Mining Claw. 00221_ U-05 Engineer lays Concrete. 00259_ Acquired Sensor Array. 00262_ EXIT=FOUND 00272_ S-10 Pest Flight Unit ripped off. 00274_ Critical hit (Burn: +37). 00276_ Assault Rifle destroyed. 00280_ Aluminum Leg destroyed. Map ----- +----------------------------------------------------+ | | | | | | | | | | | | | | | | | | | | | | | | | | | | | | | | | | | ????????????????????????????????????????######???? | | ??????????????????????????????????????# ! ?#? | | ??????????????????????????????????????# #? | | ??????????????????????????????????????# """ """ #? | | ??????????????????????????????????????# """ """ #? | | ???????????????????????############???# """ """ #? | | ???????????????????????# # #???# #? | | ???????????????????????# < # """ #???# #? | | ????????????????# """ # @ # """ #???# #? | | ????????????????# /s + """ #???#####+###### | | ????????????????# # # """ ######## # | | ????????????????######?#s # + | | ?????????????????????? s #################### # | | ???????????????????? #??????????????????# # | | ??????????????????? !! #??????????????????# # | | ????????????????? !! #??????????????????# | | ???????????????? ! #??????????????????# | | ???????????????# ??????????????????#### | | ???????????????# ?????????????######### | | ???????????????#########ggg ????????? ??# | | ??????????????????????? #?????????# ?# | | ??????????????????????? ??????????# ?# | | ??????????????????????? ?????" ???# # | | ??????????????????????? ??????? + + | | ???????????????????????? ??????????# ##### | | ?????????????????????????????????????# | | ?????????????????????????????????????# | | ?????????????????????????????????????# = # | | ?????????????????????????????????????# | | ?????????????????????????????????????# """ "" | | ??????????????????????????????######## """ ## | | ??????????????????????????????# # """ ## | | ??????????????????????????????# # ## | +----------------------------------------------------+ Best States ------------- Heat Dissipation 25 Energy Generation 10 Energy Capacity 250 Matter Stores 300 Matter Capacity 300 Sight Range 16 Terrain Scan Density 10 Core Shielding 20 Evasion (%) 55 Item Schematics ----------------- None Robot Schematics ------------------ None Fabricated ------------ Nothing Repaired ---------- Nothing Alien Tech Used ----------------- None Achievements -------------- None Challenges ------------ None Game ------ Seed DamperXenonMegatreads Manual? 0 Play Time 00:05:12 Cumulative 1028.0 hours Start 2025.05.09 @ 21:19:12 End 2025.05.09 @ 21:22:10 Sessions 1 Manual Loads 0 Difficulty Rogue Special Mode AFD2021/Volatile Game No. 1263 Rogue 981 Adventurer 124 Explorer 158 Win Type - Total 44 Types 31/0/8/3/1/0/0/1/0/0 Lore% 91 Gallery% 85 Achievement% 79 Wizard Run 0 Options --------- Layout 0 ASCII 0 Keyboard 1 Movement Numpad Keybinds 0 Fullscreen 2 Font 18/X11 Map View 76x50 Zoom Use 0% Tactical HUD 1 Map Filters NONE Filters NONE Steam 1 RUN: bbb863c2-83df-40d4-8e83-d8216261e590